Workbook

Sheet Analysis
A1: 2014-04-14 | B1: 104.4 | C1: 180 | D1: =SUM(B1:B1) -> 104.4 | E1: =SUM(C1:C1) -> 180
A2: =A1+7 -> 2014-04-21 | B2: 104.4 | C2: 180 | D2: =SUM(B1:B2) -> 208.8 | E2: =SUM(C1:C2) -> 360
A3: =A2+7 -> 2014-04-28 | B3: 104.4 | C3: 180 | D3: =SUM(B1:B3) -> 313.2 | E3: =SUM(C1:C3) -> 540
A4: 2014-05-05 | B4: 104.4 | C4: 180 | D4: =SUM(B1:B4) -> 417.6 | E4: =SUM(C1:C4) -> 720
A5: 2014-05-12 | B5: 104.4 | C5: 180 | D5: =SUM(B1:B5) -> 522 | E5: =SUM(C1:C5) -> 900
A6: 2014-05-19 | B6: 104.4 | C6: 180 | D6: =SUM(B1:B6) -> 626.4 | E6: =SUM(C1:C6) -> 1080
A7: 2014-05-26 | B7: 104.4 | C7: 180 | D7: =SUM(B1:B7) -> 730.8 | E7: =SUM(C1:C7) -> 1260
A8: 2014-06-02 | B8: 104.4 | C8: 180 | D8: =SUM(B1:B8) -> 835.2 | E8: =SUM(C1:C8) -> 1440
A9: 2014-06-09 | B9: 104.4 | C9: 180 | D9: =SUM(B1:B9) -> 939.6 | E9: =SUM(C1:C9) -> 1620
A10: 2014-06-16 | B10: 104.4 | C10: 180 | D10: =SUM(B1:B10) -> 1044 | E10: =SUM(C1:C10) -> 1800
A11: 2014-06-23 | B11: 104.4 | C11: 180
A12: season lock
A13: Raw Counts | K13: % Distributions
A14: Weeks Remaining | B14: Bronze | C14: Silver | D14: Gold | E14: Platinum | F14: Diamond | G14: Master | H14: GM | I14: Totals | K14: Bronze | L14: Silver | M14: Gold | N14: Platinum | O14: Diamond | P14: Master
A15: 1 | B15: 216 | C15: 356 | D15: 1928 | E15: 1626 | F15: 1587 | G15: 188 | H15: 199 | I15: =SUM(B15:H15) -> 6100 | K15: =B15/$I15 -> 0.03540983607 | L15: =C15/$I15 -> 0.05836065574 | M15: =D15/$I15 -> 0.3160655738 | N15: =E15/$I15 -> 0.266557377 | O15: =F15/$I15 -> 0.2601639344 | P15: =G15/$I15 -> 0.03081967213
A16: 2 | B16: 73 | C16: 157 | D16: 691 | E16: 487 | F16: 393 | G16: 66 | H16: 0 | I16: =SUM(B16:H16) -> 1867 | K16: =B16/$I16 -> 0.03910016069 | L16: =C16/$I16 -> 0.08409212641 | M16: =D16/$I16 -> 0.3701124799 | N16: =E16/$I16 -> 0.2608462775 | O16: =F16/$I16 -> 0.2104981253 | P16: 0.03535083021
A17: 3 | B17: 75 | C17: 178 | D17: 644 | E17: 378 | F17: 333 | G17: 57 | H17: 0 | I17: 1665 | K17: 0.04504504505 | L17: 0.1069069069 | M17: 0.3867867868 | N17: 0.227027027 | O17: 0.2 | P17: 0.03423423423
A18: 4 | B18: 82 | C18: 204 | D18: 659 | E18: 365 | F18: 291 | G18: 56 | H18: 0 | I18: 1657 | K18: 0.04948702474 | L18: 0.1231140616 | M18: 0.3977066989 | N18: 0.2202776101 | O18: 0.1756185878 | P18: 0.0337960169
A19: 5 | B19: 96 | C19: 263 | D19: 805 | E19: 419 | F19: 294 | G19: 64 | H19: 0 | I19: 1941 | J19: =SUM(I15:I19) -> 13230 | K19: 0.04945904173 | L19: 0.1354971664 | M19: 0.4147346728 | N19: 0.2158681092 | O19: 0.1514683153 | P19: 0.03297269449
A20: 6 | B20: 151 | C20: 424 | D20: 990 | E20: 374 | F20: 290 | G20: 79 | H20: 0 | I20: 2308 | K20: 0.06542461005 | L20: 0.1837088388 | M20: 0.4289428076 | N20: 0.1620450607 | O20: 0.1256499133 | P20: 0.0342287695
A21: 7 | B21: 231 | C21: 720 | D21: 1311 | E21: 397 | F21: 318 | G21: 82 | H21: 0 | I21: 3059 | K21: 0.07551487414 | L21: 0.2353710363 | M21: 0.4285714286 | N21: 0.1297809742 | O21: 0.103955541 | P21: 0.0268061458
A22: 8 | B22: 425 | C22: 1369 | D22: 1588 | E22: 452 | F22: 328 | G22: 84 | H22: 0 | I22: =SUM(B22:H22) -> 4246 | K22: 0.1000942063 | L22: 0.3224211022 | M22: 0.3739990579 | N22: 0.1064531324 | O22: 0.07724917569 | P22: 0.01978332548
A23: 9 | B23: 1385 | C23: 2983 | D23: 2063 | E23: 574 | F23: 348 | G23: 119 | H23: 0 | I23: =SUM(B23:H23) -> 7472 | K23: 0.1853586724 | L23: 0.3992237687 | M23: 0.2760974304 | N23: 0.07682012848 | O23: 0.0465738758 | P23: 0.0159261242
A24: 10 | B24: 6163 | C24: 6314 | D24: 2729 | E24: 1065 | F24: 459 | G24: 119 | H24: 0 | I24: =SUM(B24:H24) -> 16849 | J24: =SUM(I23:I24) -> 24321 | K24: 0.3657783845 | L24: 0.3747403407 | M24: 0.1619680693 | N24: 0.06320849902 | O24: 0.02724197282 | P24: 0.007062733693
A25: Totals | B25: =SUM(B15:B24) -> 8897 | C25: =SUM(C15:C24) -> 12968 | D25: 13408 | E25: 6137 | F25: 4641 | G25: 914 | H25: 199 | I25: 47164 | K25: 0.1886396404 | L25: 0.2749554745 | M25: 0.2842846239 | N25: 0.1301204308 | O25: 0.09840132304 | P25: 0.01937918752
J26: Target: | K26: 0.08 | L26: 0.2 | M26: 0.32 | N26: 0.2 | O26: 0.18 | P26: 0.02
A27: =A15&"* | "&B15&" | "&C15&" | "&D15&" | "&E15&" | "&F15&" | "&G15 -> 1* | 216 | 356 | 1928 | 1626 | 1587 | 188 | K27: =A15&"* | "&ROUNDDOWN(K15,4)*100&"% | "&ROUNDDOWN(L15,4)*100&"% | "&ROUNDDOWN(M15,4)*100&"% | "&ROUNDDOWN(N15,4)*100&"% | "&ROUNDDOWN(O15,4)*100&"% | "&ROUNDDOWN(P15,4)*100&"%" -> 1* | 3.54% | 5.83% | 31.6% | 26.65% | 26.01% | 3.08%
A28: =A16&" | "&B16&" | "&C16&" | "&D16&" | "&E16&" | "&F16&" | "&G16 -> 2 | 73 | 157 | 691 | 487 | 393 | 66 | K28: =A16&" | "&ROUNDDOWN(K16,4)*100&"% | "&ROUNDDOWN(L16,4)*100&"% | "&ROUNDDOWN(M16,4)*100&"% | "&ROUNDDOWN(N16,4)*100&"% | "&ROUNDDOWN(O16,4)*100&"% | "&ROUNDDOWN(P16,4)*100&"%" -> 2 | 3.91% | 8.4% | 37.01% | 26.08% | 21.04% | 3.53%
A29: 3 | 75 | 178 | 644 | 378 | 333 | 57 | K29: 3 | 4.5% | 10.69% | 38.67% | 22.7% | 20% | 3.42%
A30: 4 | 82 | 204 | 659 | 365 | 291 | 56 | K30: 4 | 4.94% | 12.31% | 39.77% | 22.02% | 17.56% | 3.37%
A31: 5 | 96 | 263 | 805 | 419 | 294 | 64 | K31: 5 | 4.94% | 13.54% | 41.47% | 21.58% | 15.14% | 3.29%
A32: 6 | 151 | 424 | 990 | 374 | 290 | 79 | K32: 6 | 6.54% | 18.37% | 42.89% | 16.2% | 12.56% | 3.42%
A33: 7 | 231 | 720 | 1311 | 397 | 318 | 82 | K33: 7 | 7.55% | 23.53% | 42.85% | 12.97% | 10.39% | 2.68%
A34: 8 | 425 | 1369 | 1588 | 452 | 328 | 84 | K34: 8 | 10% | 32.24% | 37.39% | 10.64% | 7.72% | 1.97%
A35: 9 | 1385 | 2983 | 2063 | 574 | 348 | 119 | K35: =A23&" | "&ROUNDDOWN(K23,4)*100&"% | "&ROUNDDOWN(L23,4)*100&"% | "&ROUNDDOWN(M23,4)*100&"% | "&ROUNDDOWN(N23,4)*100&"% | "&ROUNDDOWN(O23,4)*100&"% | "&ROUNDDOWN(P23,4)*100&"%" -> 9 | 18.53% | 39.92% | 27.6% | 7.68% | 4.65% | 1.59%
A36: =A24&"** | "&B24&" | "&C24&" | "&D24&" | "&E24&" | "&F24&" | "&G24 -> 10** | 6163 | 6314 | 2729 | 1065 | 459 | 119 | K36: =A24&"** | "&ROUNDDOWN(K24,4)*100&"% | "&ROUNDDOWN(L24,4)*100&"% | "&ROUNDDOWN(M24,4)*100&"% | "&ROUNDDOWN(N24,4)*100&"% | "&ROUNDDOWN(O24,4)*100&"% | "&ROUNDDOWN(P24,4)*100&"%" -> 10** | 36.57% | 37.47% | 16.19% | 6.32% | 2.72% | 0.7%
A38: For reddit
A40: Continuing the same idea from [this reddit post](http://www.reddit.com/r/starcraft/comments/286ugt/na_battlenet_player_activity_analysis_based_on/) and this [TL post](http://www.teamliquid.net/forum/viewpost.php?post_id=22353807)
A42: I grabbed all the remaining bonus pool values for 116 | B42: 387 players ([using the EU player list from nios.kr](http://nios.kr/sc2/eu/1v1/hots/1)). These are just for 1v1 ladder.
A44: The program to do this was written in .NET | B44: [source code here](http://19hz.info/Starcraft/SC2RanksParser/SC2RanksParser/SC2RanksParser.vb).
A46: Overview:
A48: I use bonus pool to track player activity. Since bonus pool constantly accumulates for all ladder players | B48: a rough estimate of player activity would be: if your bonus pool is high | C48: you are less active than if your bonus pool is low.
A50: Every week Bronze-Diamond league players get 104.4 bonus pool points | B50: and Master/GM players get 180 points.
A52: Using [Excalibur_Z's method of "bonus pool weeks remaining"](http://www.teamliquid.net/forum/starcraft-2/423477-ladder-analysis-activity-metric) | B52: these are the results:
A54: Raw numbers
A56: Weeks Remaining | Bronze | Silver | Gold | Platinum | Diamond | Master | Totals
A57: |:--:|:--:|:--:|:--:|:--:|:--:|:--:|:--:|
A58: 1* | 403 | 756 | 3510 | 2906 | 3697 | 647
A59: 2 | 187 | 291 | 1474 | 1061 | 1111 | 204
A60: 3 | 151 | 302 | 1433 | 1134 | 982 | 147
A61: 4 | 139 | 369 | 1634 | 1076 | 987 | 207
A62: 5 | 223 | 447 | 1957 | 1300 | 1029 | 194
A63: 6 | 241 | 706 | 2728 | 1531 | 1091 | 244
A64: 7 | 344 | 1163 | 3740 | 1681 | 1229 | 211
A65: 8 | 713 | 2556 | 5628 | 1871 | 1106 | 182
A66: 9 | 2176 | 7313 | 8921 | 2662 | 1535 | 11
A67: 10** | 8182 | 15229 | 8716 | 3042 | 1292 | 189
A70: % Distributions
A72: Weeks Remaining | Bronze | Silver | Gold | Platinum | Diamond | Master | Totals
A73: |:--:|:--:|:--:|:--:|:--:|:--:|:--:|:--:|
A74: 1* | 3.32% | 6.24% | 28.97% | 23.98% | 30.51% | 5.34%
A75: 2 | 4.32% | 6.72% | 34.05% | 24.51% | 25.67% | 4.71%
A76: 3 | 3.63% | 7.27% | 34.53% | 27.33% | 23.66% | 3.54%
A77: 4 | 3.15% | 8.36% | 37.03% | 24.38% | 22.37% | 4.69%
A78: 5 | 4.33% | 8.67% | 38% | 25.24% | 19.98% | 3.76%
A79: 6 | 3.68% | 10.79% | 41.7% | 23.4% | 16.67% | 3.73%
A80: 7 | 4.11% | 13.89% | 44.69% | 20.08% | 14.68% | 2.52%
A81: 8 | 5.91% | 21.2% | 46.68% | 15.51% | 9.17% | 1.5%
A82: 9 | 9.62% | 32.33% | 39.44% | 11.76% | 6.78% | 0.04%
A83: 10** | 22.32% | 41.55% | 23.78% | 8.3% | 3.52% | 0.51%
A86: *104.4 or less bonus pool remaining | B86: 180 or less for Master
A88: **940 or more bonus pool remaining | B88: 1620 or more for Master
A90: Blizzard's target distributions are: 8% | 20% | 32% | 20% | 18% | 2%
A92: Analysis:
A94: http://19hz.info/Starcraft/2014-06-17-EU_Chart.jpg
A96: The smaller the "Weeks Remaining | B96: the more active" a player can be considered.
A98: There are about 12 | B98: 000 "super-active" players - people that are probably playing 7+ games a week. (estimating this based on your bonus pool changing by about 20 every time you win or lose).
A100: There might be about 30 | B100: 000 "semi-active" players - people that play 3+ games a week.
A102: About half the total player count has played less than 15 games total.
A104: Overall | B104: one could argue that for "active" players | C104: Bronze and Silver leagues are actually undersized | D104: Gold and Platinum leagues are relatively close to their target sizes | E104: and Diamond and Master leagues are inflated.
A106: Caveats - Blizzard may also take into account "most recent activity" to determine their distributions. A player that just started playing games in the past week would still have a relatively high bonus pool.
A108: Raw data is here: http://19hz.info/Starcraft/EU%20Battle%20Net%20Bonus%20Pool.xlsm
A110: Please let me know if you see any issues with the data/analysis. I'm running this program for Korea and I might start doing this on a weekly basis for the 3 primary servers (Americas/EU/KR). I could also mod the program to run it for team games but it would be a lot more complicated and probably take 2 or 3 times as long because each "team" gets its own bonus pool | B110: so some players that play on multiple teams will have 4+ bonus pools.

Sheet Bronze
A1: Costard | B1: 963 | C1: 10
A2: twon | B2: 14 | C2: 1
A3: GoBaWoo | B3: 11 | C3: 1
A4: 搖滾客 | B4: 3 | C4: 1
A5: rogersung | B5: 4 | C5: 1
A6: 스플애쉬 | B6: 5 | C6: 1
A7: jjnim | B7: 1 | C7: 1
A8: 보뎅뎅 | B8: 1 | C8: 1
A9: 老維 | B9: 45 | C9: 1
A10: COPYCAT | B10: 12 | C10: 1
A11: 吃訝 | B11: 4 | C11: 1
A12: KTI | B12: 13 | C12: 1
A13: 당첨마드리드 | B13: 0 | C13: 1
A14: 앤키두 | B14: 8 | C14: 1
A15: 먹고보니할매 | B15: 20 | C15: 1
A16: 스나이퍼 | B16: 13 | C16: 1
A17: WhoAreYou | B17: 12 | C17: 1
A18: 까미저그 | B18: 33 | C18: 1
A19: IIIIIIIIII | B19: 14 | C19: 1
A20: 케로로 | B20: 8 | C20: 1
A21: Pureness | B21: 14 | C21: 1
A22: ming | B22: 15 | C22: 1
A23: 포풍같은러쉬 | B23: 4 | C23: 1
A24: michaeljok | B24: 11 | C24: 1
A25: 草莓棉花糖 | B25: 17 | C25: 1
A26: bigeyer | B26: 4 | C26: 1
A27: 정토스 | B27: 3 | C27: 1
A28: 戀雅 | B28: 56 | C28: 1
A29: valve | B29: 50 | C29: 1
A30: 전설준호 | B30: 0 | C30: 1
A31: 블랙호이트 | B31: 12 | C31: 1
A32: wag | B32: 6 | C32: 1
A33: 마스터군단 | B33: 16 | C33: 1
A34: Rain | B34: 3 | C34: 1
A35: Teaerh | B35: 89 | C35: 1
A36: 광장동휘발유 | B36: 11 | C36: 1
A37: 스타첨해봐 | B37: 11 | C37: 1
A38: 띠리띠리 | B38: 21 | C38: 1
A39: 날콩깔려는게냐 | B39: 13 | C39: 1
A40: 거성 | B40: 20 | C40: 1
A41: superKERORO | B41: 0 | C41: 1
A42: 대장 | B42: 89 | C42: 1
A43: cltiger | B43: 0 | C43: 1
A44: BIGBEAR | B44: 1 | C44: 1
A45: 키레트키 | B45: 42 | C45: 1
A46: BlueTa | B46: 33 | C46: 1
A47: 케이 | B47: 67 | C47: 1
A48: huikun | B48: 0 | C48: 1
A49: 고스티브잡스 | B49: 13 | C49: 1
A50: 배탄 | B50: 56 | C50: 1
A51: 牛寶寶 | B51: 13 | C51: 1
A52: LOVJ | B52: 4 | C52: 1
A53: 黑射會老大 | B53: 0 | C53: 1
A54: Armored | B54: 13 | C54: 1
A55: 성격폭팔 | B55: 14 | C55: 1
A56: 힘바이 | B56: 1 | C56: 1
A57: 난난난 | B57: 24 | C57: 1
A58: Toleas | B58: 47 | C58: 1
A59: KyArroyo | B59: 42 | C59: 1
A60: winwooin | B60: 8 | C60: 1
A61: 싸울아비 | B61: 50 | C61: 1
A62: adai | B62: 1 | C62: 1
A63: Jerryhouse | B63: 43 | C63: 1
A64: 캡틴썬희 | B64: 3 | C64: 1
A65: stevensigal | B65: 1 | C65: 1
A66: cbs | B66: 92 | C66: 1
A67: Blackeros | B67: 14 | C67: 1
A68: 雷諾突擊隊 | B68: 25 | C68: 1
A69: Pulong | B69: 72 | C69: 1
A70: Bluepain | B70: 11 | C70: 1
A71: soonhyo | B71: 13 | C71: 1
A72: 핵언더 | B72: 4 | C72: 1
A73: 스타마스터 | B73: 1 | C73: 1
A74: ttnwinf | B74: 42 | C74: 1
A75: 라리가라라 | B75: 29 | C75: 1
A76: SevenRule | B76: 50 | C76: 1
A77: 스탈놈휠라 | B77: 28 | C77: 1
A78: 태권 | B78: 1 | C78: 1
A79: 파인만 | B79: 62 | C79: 1
A80: 코로사박 | B80: 49 | C80: 1
A81: zeus | B81: 5 | C81: 1
A82: scuffle | B82: 12 | C82: 1
A83: 이춘경 | B83: 51 | C83: 1
A84: zaGrab | B84: 11 | C84: 1
A85: startrack | B85: 5 | C85: 1
A86: WonderWind | B86: 88 | C86: 1
A87: 賊小文 | B87: 12 | C87: 1
A88: ghost | B88: 35 | C88: 1
A89: CHICHENG | B89: 11 | C89: 1
A90: 불굴에의지 | B90: 13 | C90: 1
A91: 슬픈늑대 | B91: 13 | C91: 1
A92: paulinglee | B92: 54 | C92: 1
A93: 용이쓰 | B93: 74 | C93: 1
A94: DDRE | B94: 71 | C94: 1
A95: 우주의끝으로 | B95: 73 | C95: 1
A96: 서현점알바생 | B96: 51 | C96: 1
A97: jeff | B97: 16 | C97: 1
A98: HOYA | B98: 37 | C98: 1
A99: CozyMiDi | B99: 0 | C99: 1
A100: 가조우 | B100: 132 | C100: 2
A101: mrsong | B101: 4 | C101: 1
A102: 역시정반장 | B102: 1 | C102: 1
A103: nado | B103: 1 | C103: 1
A104: Beckham | B104: 13 | C104: 1
A105: wtlohscvehsc | B105: 11 | C105: 1
A106: Starshah | B106: 90 | C106: 1
A107: Fomula | B107: 85 | C107: 1
A108: 星殞 | B108: 45 | C108: 1
A109: 할리와스타투맨 | B109: 45 | C109: 1
A110: 라스알렉산더슨 | B110: 68 | C110: 1
A111: 헌터던필 | B111: 126 | C111: 2
A112: bowling | B112: 1 | C112: 1
A113: UNDEATABLE | B113: 55 | C113: 1
A114: 八條鄉長 | B114: 11 | C114: 1
A115: 阿寶 | B115: 95 | C115: 1
A116: 밥타령 | B116: 48 | C116: 1
A117: SlayerSBoXeR | B117: 13 | C117: 1
A118: YUBONCHEN | B118: 58 | C118: 1
A119: 천그루 | B119: 45 | C119: 1
A120: Michael | B120: 16 | C120: 1
A121: tosin | B121: 80 | C121: 1
A122: suzukialu | B122: 12 | C122: 1
A123: 닉노이 | B123: 12 | C123: 1
A124: Louis | B124: 14 | C124: 1
A125: 짱구아빠 | B125: 103 | C125: 1
A126: 阿爽 | B126: 31 | C126: 1
A127: 머털도사 | B127: 100 | C127: 1
A128: TONGWING | B128: 11 | C128: 1
A129: PennySR | B129: 11 | C129: 1
A130: 춘돌이 | B130: 15 | C130: 1
A131: ddaya | B131: 32 | C131: 1
A132: 불타는깡다구 | B132: 15 | C132: 1
A133: wang | B133: 45 | C133: 1
A134: Envy | B134: 119 | C134: 2
A135: 바바밤 | B135: 61 | C135: 1
A136: moldey | B136: 0 | C136: 1
A137: 蕃茄 | B137: 28 | C137: 1
A138: 최말순 | B138: 0 | C138: 1
A139: yckiller | B139: 44 | C139: 1
A140: towns | B140: 0 | C140: 1
A141: 똥싼맹구 | B141: 27 | C141: 1
A142: hoonyjjang | B142: 0 | C142: 1
A143: 我要稱霸星海 | B143: 17 | C143: 1
A144: 주인없는발롱도르 | B144: 0 | C144: 1
A145: 처음처럼 | B145: 34 | C145: 1
A146: 이옥자 | B146: 45 | C146: 1
A147: 키원 | B147: 104 | C147: 1
A148: lhh | B148: 65 | C148: 1
A149: 젤리나졸 | B149: 2 | C149: 1
A150: 하리오드 | B150: 77 | C150: 1
A151: Angry | B151: 27 | C151: 1
A152: 아이리터 | B152: 36 | C152: 1
A153: 초럭 | B153: 16 | C153: 1
A154: Woo | B154: 132 | C154: 2
A155: 한호리 | B155: 16 | C155: 1
A156: babesh | B156: 96 | C156: 1
A157: suzuki | B157: 24 | C157: 1
A158: 노트 | B158: 58 | C158: 1
A159: DNAageloc | B159: 117 | C159: 2
A160: 짬뽕 | B160: 108 | C160: 2
A161: 외상후통증 | B161: 13 | C161: 1
A162: strongdolsan | B162: 2 | C162: 1
A163: 神鬼驚嘆 | B163: 65 | C163: 1
A164: 일수일멸 | B164: 77 | C164: 1
A165: bigguy | B165: 13 | C165: 1
A166: yXz | B166: 40 | C166: 1
A167: Alice | B167: 0 | C167: 1
A168: ketch | B168: 181 | C168: 2
A169: 수원고구마 | B169: 108 | C169: 2
A170: 禁區 | B170: 25 | C170: 1
A171: beomline | B171: 151 | C171: 2
A172: 미니맥스 | B172: 46 | C172: 1
A173: 포토뱅 | B173: 55 | C173: 1
A174: CoolHoya | B174: 43 | C174: 1
A175: 나성원 | B175: 3 | C175: 1
A176: Nick | B176: 80 | C176: 1
A177: GolfOrSecond | B177: 22 | C177: 1
A178: 지르기 | B178: 109 | C178: 2
A179: 뿌악 | B179: 70 | C179: 1
A180: StyleMVP | B180: 7 | C180: 1
A181: 애키호용 | B181: 44 | C181: 1
A182: 도그마게돈 | B182: 65 | C182: 1
A183: hoze | B183: 150 | C183: 2
A184: 조의군단수장 | B184: 83 | C184: 1
A185: dwfc | B185: 13 | C185: 1
A186: 오닉시아 | B186: 44 | C186: 1
A187: 우주최강테란 | B187: 72 | C187: 1
A188: terriana | B188: 60 | C188: 1
A189: 검은안개 | B189: 73 | C189: 1
A190: 마일드세븐 | B190: 48 | C190: 1
A191: skyterran | B191: 45 | C191: 1
A192: CHA | B192: 64 | C192: 1
A193: 황태자 | B193: 14 | C193: 1
A194: MostWanted | B194: 25 | C194: 1
A195: Ttndsd | B195: 22 | C195: 1
A196: gogodk | B196: 62 | C196: 1
A197: Terramine | B197: 63 | C197: 1
A198: WarZimi | B198: 2 | C198: 1
A199: Painstaking | B199: 3 | C199: 1
A200: JACK | B200: 0 | C200: 1
... 8697 more rows

Sheet Silver
A1: 제라드 | B1: 919 | C1: 9
A2: 아잉하악오빠 | B2: 0 | C2: 1
A3: BDHD | B3: 14 | C3: 1
A4: 한국의힘을보여쥼 | B4: 1 | C4: 1
A5: Room | B5: 9 | C5: 1
A6: ArmStorm | B6: 9 | C6: 1
A7: 게으른천재 | B7: 12 | C7: 1
A8: PEL | B8: 15 | C8: 1
A9: 큐브 | B9: 26 | C9: 1
A10: SBS | B10: 30 | C10: 1
A11: VinCent | B11: 4 | C11: 1
A12: 스타행님 | B12: 11 | C12: 1
A13: qqq | B13: 11 | C13: 1
A14: 광전사 | B14: 15 | C14: 1
A15: 거제쌔주오빠 | B15: 30 | C15: 1
A16: 호옹이 | B16: 22 | C16: 1
A17: tarzan | B17: 11 | C17: 1
A18: 경산프로 | B18: 12 | C18: 1
A19: 사이방 | B19: 6 | C19: 1
A20: 피묻은개고기 | B20: 1 | C20: 1
A21: Lively | B21: 50 | C21: 1
A22: jemui | B22: 24 | C22: 1
A23: kirg | B23: 12 | C23: 1
A24: Assault | B24: 2 | C24: 1
A25: 배띠 | B25: 51 | C25: 1
A26: howard | B26: 7 | C26: 1
A27: PACMAN | B27: 18 | C27: 1
A28: Starty | B28: 12 | C28: 1
A29: Fkiller | B29: 14 | C29: 1
A30: MarineKing | B30: 54 | C30: 1
A31: Tomatoking | B31: 15 | C31: 1
A32: 阿布及 | B32: 16 | C32: 1
A33: Hero | B33: 1 | C33: 1
A34: 해병안죽어요 | B34: 21 | C34: 1
A35: 이아나 | B35: 3 | C35: 1
A36: 나주배 | B36: 9 | C36: 1
A37: cyove | B37: 11 | C37: 1
A38: 앙앙 | B38: 28 | C38: 1
A39: 포텐 | B39: 23 | C39: 1
A40: winsman | B40: 12 | C40: 1
A41: Matt | B41: 25 | C41: 1
A42: nasica | B42: 12 | C42: 1
A43: DackGongA | B43: 11 | C43: 1
A44: 蕎爸 | B44: 11 | C44: 1
A45: 봉구라똥 | B45: 1 | C45: 1
A46: dasang | B46: 26 | C46: 1
A47: ADHD | B47: 14 | C47: 1
A48: 翰翰林 | B48: 17 | C48: 1
A49: actingstar | B49: 56 | C49: 1
A50: 불배트 | B50: 11 | C50: 1
A51: annarob | B51: 9 | C51: 1
A52: nice | B52: 3 | C52: 1
A53: Mamanim | B53: 4 | C53: 1
A54: 로또일등당첨금백 | B54: 11 | C54: 1
A55: abra | B55: 8 | C55: 1
A56: 제비한마리 | B56: 14 | C56: 1
A57: 갓병귀 | B57: 13 | C57: 1
A58: angeldig | B58: 10 | C58: 1
A59: 故事 | B59: 44 | C59: 1
A60: DCDPP | B60: 10 | C60: 1
A61: 건설로봇 | B61: 30 | C61: 1
A62: STARplanet | B62: 14 | C62: 1
A63: 사륜안 | B63: 15 | C63: 1
A64: 바카라대마왕 | B64: 13 | C64: 1
A65: yjin | B65: 13 | C65: 1
A66: 그저논다 | B66: 29 | C66: 1
A67: 웅이지 | B67: 40 | C67: 1
A68: 공주 | B68: 13 | C68: 1
A69: wwwap | B69: 57 | C69: 1
A70: max | B70: 16 | C70: 1
A71: 엘비와이 | B71: 13 | C71: 1
A72: soul | B72: 16 | C72: 1
A73: Migo | B73: 27 | C73: 1
A74: 카륜키카 | B74: 15 | C74: 1
A75: AzuisaPig | B75: 1 | C75: 1
A76: 윤희로 | B76: 41 | C76: 1
A77: TdMarAmuMu | B77: 26 | C77: 1
A78: dmb | B78: 15 | C78: 1
A79: 박사장 | B79: 18 | C79: 1
A80: AchoooWei | B80: 35 | C80: 1
A81: 명훈삼촌 | B81: 12 | C81: 1
A82: wook | B82: 42 | C82: 1
A83: kwakdw | B83: 25 | C83: 1
A84: StarkOsiriS | B84: 10 | C84: 1
A85: 프리든발레리안 | B85: 42 | C85: 1
A86: Lindol | B86: 2 | C86: 1
A87: shin | B87: 1 | C87: 1
A88: dlwhdghk | B88: 14 | C88: 1
A89: 비겁한꼬추 | B89: 47 | C89: 1
A90: 모낭강타 | B90: 14 | C90: 1
A91: 手殘王 | B91: 58 | C91: 1
A92: 조쌍 | B92: 12 | C92: 1
A93: Veritas | B93: 30 | C93: 1
A94: son | B94: 13 | C94: 1
A95: iverbow | B95: 46 | C95: 1
A96: ABMM | B96: 14 | C96: 1
A97: 새벽이형호날두 | B97: 2 | C97: 1
A98: YEH | B98: 11 | C98: 1
A99: dlqldk | B99: 46 | C99: 1
A100: Millhouse | B100: 11 | C100: 1
A101: 淡淡 | B101: 5 | C101: 1
A102: INmighty | B102: 26 | C102: 1
A103: boaes | B103: 1 | C103: 1
A104: 김경현 | B104: 19 | C104: 1
A105: 더블윙 | B105: 1 | C105: 1
A106: King | B106: 4 | C106: 1
A107: level | B107: 10 | C107: 1
A108: 모두다사랑으로 | B108: 83 | C108: 1
A109: 원준이 | B109: 44 | C109: 1
A110: yamadai | B110: 11 | C110: 1
A111: 달뜨는날의하루 | B111: 12 | C111: 1
A112: 정무문화이팅 | B112: 5 | C112: 1
A113: 미야천사 | B113: 26 | C113: 1
A114: 尻王 | B114: 80 | C114: 1
A115: BllllllllllD | B115: 43 | C115: 1
A116: 奧州筆頭 | B116: 39 | C116: 1
A117: SoNice | B117: 29 | C117: 1
A118: 血瞳魔龍 | B118: 1 | C118: 1
A119: GREENMILE | B119: 53 | C119: 1
A120: 최강붉은매 | B120: 52 | C120: 1
A121: 요미우리 | B121: 6 | C121: 1
A122: tyler | B122: 12 | C122: 1
A123: 사신 | B123: 1 | C123: 1
A124: 자스민 | B124: 78 | C124: 1
A125: 보스몽 | B125: 4 | C125: 1
A126: 싓팔 | B126: 43 | C126: 1
A127: RUhungry | B127: 11 | C127: 1
A128: ToxicBomber | B128: 61 | C128: 1
A129: 알펜시아 | B129: 1 | C129: 1
A130: 농푸 | B130: 32 | C130: 1
A131: 曉陽 | B131: 43 | C131: 1
A132: 제라툴 | B132: 100 | C132: 1
A133: 포스 | B133: 59 | C133: 1
A134: 安心雅 | B134: 18 | C134: 1
A135: intoThemacke | B135: 3 | C135: 1
A136: 피씨방 | B136: 24 | C136: 1
A137: Hsso | B137: 12 | C137: 1
A138: 무릉도원 | B138: 1 | C138: 1
A139: 上官鷹 | B139: 37 | C139: 1
A140: ttdd | B140: 38 | C140: 1
A141: 자비를원해 | B141: 27 | C141: 1
A142: IMmortaL | B142: 54 | C142: 1
A143: 神無月 | B143: 41 | C143: 1
A144: 나누 | B144: 1 | C144: 1
A145: FAIRYTAIL | B145: 45 | C145: 1
A146: 이기고싶을뿐 | B146: 38 | C146: 1
A147: 火爆 | B147: 2 | C147: 1
A148: CaptaiNK | B148: 44 | C148: 1
A149: AKAbearsangt | B149: 11 | C149: 1
A150: SkyTraveler | B150: 12 | C150: 1
A151: Kerygmahong | B151: 1 | C151: 1
A152: 용파리승 | B152: 62 | C152: 1
A153: ictleader | B153: 47 | C153: 1
A154: Help | B154: 14 | C154: 1
A155: 서태원 | B155: 39 | C155: 1
A156: 희진몬 | B156: 46 | C156: 1
A157: Jayford | B157: 12 | C157: 1
A158: pris | B158: 71 | C158: 1
A159: SMMH | B159: 8 | C159: 1
A160: Jarvis | B160: 12 | C160: 1
A161: ENEL | B161: 41 | C161: 1
A162: amazingkiss | B162: 35 | C162: 1
A163: 졸음깨는껌 | B163: 15 | C163: 1
A164: 겐노스케 | B164: 61 | C164: 1
A165: 빠쌰 | B165: 15 | C165: 1
A166: SGrSwing | B166: 16 | C166: 1
A167: 용용퍽 | B167: 51 | C167: 1
A168: kumy | B168: 14 | C168: 1
A169: Tpoint | B169: 3 | C169: 1
A170: Tjak | B170: 1 | C170: 1
A171: skyblue | B171: 10 | C171: 1
A172: HJHEPAPA | B172: 2 | C172: 1
A173: lastrain | B173: 1 | C173: 1
A174: 레이첼 | B174: 27 | C174: 1
A175: Clover | B175: 11 | C175: 1
A176: INSawa | B176: 27 | C176: 1
A177: GoldenTiger | B177: 32 | C177: 1
A178: 커피콩새 | B178: 1 | C178: 1
A179: KillerOrange | B179: 43 | C179: 1
A180: Skai | B180: 58 | C180: 1
A181: kent | B181: 45 | C181: 1
A182: 불사조무빙싯팔년 | B182: 52 | C182: 1
A183: 내가누구게 | B183: 77 | C183: 1
A184: LiveZerG | B184: 31 | C184: 1
A185: 콜라 | B185: 28 | C185: 1
A186: 니아빠흑인 | B186: 28 | C186: 1
A187: myjang | B187: 47 | C187: 1
A188: Jasper | B188: 45 | C188: 1
A189: 동네아는오빠 | B189: 31 | C189: 1
A190: luigi | B190: 10 | C190: 1
A191: 신민아 | B191: 57 | C191: 1
A192: Legend | B192: 91 | C192: 1
A193: prosyoung | B193: 54 | C193: 1
A194: ccycall | B194: 15 | C194: 1
A195: WJason | B195: 19 | C195: 1
A196: MongK | B196: 95 | C196: 1
A197: rasdva | B197: 1 | C197: 1
A198: 느님 | B198: 12 | C198: 1
A199: 스타푸우 | B199: 83 | C199: 1
A200: 김치군 | B200: 37 | C200: 1
... 12768 more rows

Sheet Gold
A1: chikchik | B1: 961 | C1: 10
A2: 라이뽀겐 | B2: 2 | C2: 1
A3: 프로토스 | B3: 10 | C3: 1
A4: esTnr | B4: 1 | C4: 1
A5: 적당히덤벼라 | B5: 1 | C5: 1
A6: 공날씬 | B6: 8 | C6: 1
A7: Submit | B7: 11 | C7: 1
A8: RED | B8: 1 | C8: 1
A9: 리베로 | B9: 6 | C9: 1
A10: 머새키야 | B10: 9 | C10: 1
A11: 크레이지울트라 | B11: 13 | C11: 1
A12: Sula | B12: 6 | C12: 1
A13: 당무벌레 | B13: 11 | C13: 1
A14: CalvinNgai | B14: 1 | C14: 1
A15: EZioLin | B15: 0 | C15: 1
A16: 멕건마 | B16: 7 | C16: 1
A17: beautifulife | B17: 25 | C17: 1
A18: 김규태 | B18: 11 | C18: 1
A19: Lucifer | B19: 24 | C19: 1
A20: 똔경뚜 | B20: 24 | C20: 1
A21: 가리봉송 | B21: 26 | C21: 1
A22: Tassadar | B22: 22 | C22: 1
A23: 무조건승뤼 | B23: 2 | C23: 1
A24: 몽키나가신다 | B24: 10 | C24: 1
A25: ZalTau | B25: 1 | C25: 1
A26: Neg | B26: 21 | C26: 1
A27: 煞氣虎哥 | B27: 11 | C27: 1
A28: starwars | B28: 3 | C28: 1
A29: 시루스 | B29: 1 | C29: 1
A30: hooligan | B30: 17 | C30: 1
A31: GreatPark | B31: 28 | C31: 1
A32: 망덕 | B32: 8 | C32: 1
A33: JohnnyDepp | B33: 8 | C33: 1
A34: moonrise | B34: 8 | C34: 1
A35: Majesty | B35: 0 | C35: 1
A36: 어떻게하노 | B36: 19 | C36: 1
A37: ADUAN | B37: 26 | C37: 1
A38: tonykim | B38: 0 | C38: 1
A39: 윤형석 | B39: 33 | C39: 1
A40: HEAVEN | B40: 8 | C40: 1
A41: West | B41: 53 | C41: 1
A42: mina | B42: 27 | C42: 1
A43: Rain | B43: 5 | C43: 1
A44: 김태희 | B44: 16 | C44: 1
A45: Shoko | B45: 9 | C45: 1
A46: 제패 | B46: 9 | C46: 1
A47: 湯馬士 | B47: 9 | C47: 1
A48: 단수 | B48: 2 | C48: 1
A49: 엄살제왕 | B49: 10 | C49: 1
A50: NEXtaesung | B50: 33 | C50: 1
A51: 갓수 | B51: 12 | C51: 1
A52: 드뷔시 | B52: 13 | C52: 1
A53: gggggg | B53: 28 | C53: 1
A54: Zion | B54: 10 | C54: 1
A55: Oklahoma | B55: 1 | C55: 1
A56: 군수공장공장장 | B56: 4 | C56: 1
A57: 류승범 | B57: 66 | C57: 1
A58: Lakehouse | B58: 1 | C58: 1
A59: 은돌이 | B59: 5 | C59: 1
A60: 이겨보이소 | B60: 18 | C60: 1
A61: inscrutable | B61: 8 | C61: 1
A62: subtlety | B62: 20 | C62: 1
A63: nightwing | B63: 8 | C63: 1
A64: 동네슈퍼마린 | B64: 11 | C64: 1
A65: 매지리스타병신 | B65: 7 | C65: 1
A66: 무적통닭 | B66: 8 | C66: 1
A67: 곰돌이 | B67: 40 | C67: 1
A68: 개고수 | B68: 11 | C68: 1
A69: 노숙연합회장 | B69: 1 | C69: 1
A70: STYLISH | B70: 8 | C70: 1
A71: star | B71: 12 | C71: 1
A72: 슝슝 | B72: 12 | C72: 1
A73: Jun | B73: 10 | C73: 1
A74: Capella | B74: 66 | C74: 1
A75: 맨체스터유나이티 | B75: 39 | C75: 1
A76: Anso | B76: 1 | C76: 1
A77: trippen | B77: 8 | C77: 1
A78: 獵殺小海豹 | B78: 12 | C78: 1
A79: gogogo | B79: 28 | C79: 1
A80: Eva | B80: 16 | C80: 1
A81: CptShiBa | B81: 90 | C81: 1
A82: Green | B82: 42 | C82: 1
A83: BHC | B83: 39 | C83: 1
A84: KingMaker | B84: 27 | C84: 1
A85: JaNuS | B85: 10 | C85: 1
A86: 성히아 | B86: 41 | C86: 1
A87: Parsley | B87: 2 | C87: 1
A88: 路邊怪叔叔 | B88: 9 | C88: 1
A89: 騎大象瘋狂甩尾 | B89: 7 | C89: 1
A90: 후딱리 | B90: 11 | C90: 1
A91: 퉤퉤퉤퉤 | B91: 40 | C91: 1
A92: ZeuSNaDa | B92: 14 | C92: 1
A93: pluvia | B93: 44 | C93: 1
A94: eggmoney | B94: 10 | C94: 1
A95: 난자완스 | B95: 12 | C95: 1
A96: 맹독충승하 | B96: 7 | C96: 1
A97: 얃얃 | B97: 42 | C97: 1
A98: TVTesTeR | B98: 10 | C98: 1
A99: 나는야완벽한런처 | B99: 44 | C99: 1
A100: hyoungjuk | B100: 0 | C100: 1
A101: Rugh | B101: 41 | C101: 1
A102: 악가 | B102: 24 | C102: 1
A103: 서울우유 | B103: 0 | C103: 1
A104: 마린킝 | B104: 10 | C104: 1
A105: 목숨을바치거라 | B105: 1 | C105: 1
A106: RALF | B106: 8 | C106: 1
A107: ssinsu | B107: 0 | C107: 1
A108: 아화 | B108: 1 | C108: 1
A109: mastersvvv | B109: 14 | C109: 1
A110: engineer | B110: 40 | C110: 1
A111: RealDreamer | B111: 28 | C111: 1
A112: Jessy | B112: 17 | C112: 1
A113: Mystery | B113: 42 | C113: 1
A114: Battlelee | B114: 21 | C114: 1
A115: liiililillil | B115: 11 | C115: 1
A116: 샤움 | B116: 14 | C116: 1
A117: 태희는내여친 | B117: 0 | C117: 1
A118: HATA | B118: 11 | C118: 1
A119: Levofloxacin | B119: 39 | C119: 1
A120: 하단대장 | B120: 35 | C120: 1
A121: 하마다스 | B121: 1 | C121: 1
A122: Alo | B122: 15 | C122: 1
A123: spree | B123: 23 | C123: 1
A124: ChrisCole | B124: 34 | C124: 1
A125: ssdjssdj | B125: 9 | C125: 1
A126: DestroyST | B126: 87 | C126: 1
A127: gorush | B127: 20 | C127: 1
A128: 남탱이 | B128: 9 | C128: 1
A129: 코파라 | B129: 35 | C129: 1
A130: qudtls | B130: 31 | C130: 1
A131: KienNguyen | B131: 8 | C131: 1
A132: LOVE | B132: 39 | C132: 1
A133: 고기돌림 | B133: 9 | C133: 1
A134: 레프트스트레이트 | B134: 8 | C134: 1
A135: 혁님 | B135: 3 | C135: 1
A136: 한국인 | B136: 57 | C136: 1
A137: cowboy | B137: 21 | C137: 1
A138: KeViN | B138: 14 | C138: 1
A139: 고니 | B139: 0 | C139: 1
A140: 정이없네 | B140: 11 | C140: 1
A141: 경산프로토스 | B141: 14 | C141: 1
A142: 漠刀 | B142: 48 | C142: 1
A143: NesTea | B143: 9 | C143: 1
A144: 발나우도 | B144: 37 | C144: 1
A145: 베네치안 | B145: 26 | C145: 1
A146: hyoungjuk | B146: 0 | C146: 1
A147: CnMsCOMA | B147: 44 | C147: 1
A148: SiriusA | B148: 1 | C148: 1
A149: Providence | B149: 0 | C149: 1
A150: GreenSnake | B150: 9 | C150: 1
A151: 오펜하이머 | B151: 3 | C151: 1
A152: LACOSTE | B152: 2 | C152: 1
A153: 여탕으로패줌 | B153: 13 | C153: 1
A154: 감사합니다람쥐 | B154: 38 | C154: 1
A155: bluetree | B155: 1 | C155: 1
A156: SweetDream | B156: 26 | C156: 1
A157: NightMare | B157: 53 | C157: 1
A158: 대가뤼 | B158: 0 | C158: 1
A159: 란디우스 | B159: 11 | C159: 1
A160: 힘쎈전사브롱이 | B160: 11 | C160: 1
A161: brett | B161: 9 | C161: 1
A162: 玩交友送寶物 | B162: 25 | C162: 1
A163: 오스카 | B163: 6 | C163: 1
A164: Catz | B164: 16 | C164: 1
A165: people | B165: 29 | C165: 1
A166: BOBOKU | B166: 13 | C166: 1
A167: 筷子手攝豹擬 | B167: 8 | C167: 1
A168: 깜뜨롱 | B168: 6 | C168: 1
A169: nuclear | B169: 55 | C169: 1
A170: eSlay | B170: 2 | C170: 1
A171: 테니스홀릭 | B171: 3 | C171: 1
A172: Clown | B172: 10 | C172: 1
A173: 당일간지 | B173: 40 | C173: 1
A174: 하나비 | B174: 43 | C174: 1
A175: 竹本日青 | B175: 53 | C175: 1
A176: 건방진천사 | B176: 0 | C176: 1
A177: 카라예프 | B177: 9 | C177: 1
A178: 제로드 | B178: 21 | C178: 1
A179: NonO | B179: 92 | C179: 1
A180: 나디아 | B180: 7 | C180: 1
A181: irrational | B181: 10 | C181: 1
A182: rush | B182: 13 | C182: 1
A183: 엄태뽕 | B183: 19 | C183: 1
A184: BjergsenTW | B184: 10 | C184: 1
A185: Gruju | B185: 77 | C185: 1
A186: 떰모 | B186: 62 | C186: 1
A187: 칼날여왕정육점 | B187: 27 | C187: 1
A188: 韃靼羅 | B188: 25 | C188: 1
A189: 나노미터 | B189: 75 | C189: 1
A190: 寒嘯千載慰我心安 | B190: 86 | C190: 1
A191: Grinurlife | B191: 2 | C191: 1
A192: 줄무늬 | B192: 56 | C192: 1
A193: Jeffery | B193: 8 | C193: 1
A194: bliss | B194: 8 | C194: 1
A195: BisuForever | B195: 77 | C195: 1
A196: Ginew | B196: 14 | C196: 1
A197: Nightfury | B197: 1 | C197: 1
A198: 야마토포스 | B198: 2 | C198: 1
A199: kirehiais | B199: 32 | C199: 1
A200: Paul | B200: 9 | C200: 1
... 13208 more rows

Sheet Platinum
A1: jiny | B1: 6 | C1: 1
A2: Atlas | B2: 2 | C2: 1
A3: AraAra | B3: 10 | C3: 1
A4: 테리 | B4: 8 | C4: 1
A5: 복지찻집 | B5: 12 | C5: 1
A6: 한국철도대학 | B6: 9 | C6: 1
A7: goktchoi | B7: 10 | C7: 1
A8: tongdark | B8: 10 | C8: 1
A9: Esice | B9: 13 | C9: 1
A10: 당일치기 | B10: 9 | C10: 1
A11: 캐리어가야합니다 | B11: 8 | C11: 1
A12: SymphoniC | B12: 5 | C12: 1
A13: Rescuer | B13: 11 | C13: 1
A14: PoLArBeAR | B14: 20 | C14: 1
A15: 사슴 | B15: 10 | C15: 1
A16: PANDAPAPA | B16: 1 | C16: 1
A17: CoderK | B17: 21 | C17: 1
A18: General | B18: 11 | C18: 1
A19: llllllllll | B19: 9 | C19: 1
A20: CasaV | B20: 10 | C20: 1
A21: drommman | B21: 9 | C21: 1
A22: MoonSungJin | B22: 10 | C22: 1
A23: Victor | B23: 22 | C23: 1
A24: Azrael | B24: 10 | C24: 1
A25: 태발사마 | B25: 89 | C25: 1
A26: sAsiN | B26: 27 | C26: 1
A27: KaiSR | B27: 41 | C27: 1
A28: 床前明月光 | B28: 9 | C28: 1
A29: hwan | B29: 1 | C29: 1
A30: 유로간지 | B30: 16 | C30: 1
A31: black | B31: 0 | C31: 1
A32: 噩夢再起 | B32: 9 | C32: 1
A33: 보그 | B33: 29 | C33: 1
A34: 태연 | B34: 1 | C34: 1
A35: KnowOne | B35: 0 | C35: 1
A36: 無恥之徒 | B36: 12 | C36: 1
A37: 暗黑神 | B37: 7 | C37: 1
A38: JuSeunghwan | B38: 7 | C38: 1
A39: ShinStorM | B39: 8 | C39: 1
A40: SnowWolf | B40: 13 | C40: 1
A41: 아랏샤라무니에 | B41: 12 | C41: 1
A42: 그레고리펙 | B42: 10 | C42: 1
A43: RenaKim | B43: 13 | C43: 1
A44: SuperMaRine | B44: 7 | C44: 1
A45: TaLoT | B45: 0 | C45: 1
A46: 殺鋒魔聲 | B46: 11 | C46: 1
A47: 영웅거프 | B47: 1 | C47: 1
A48: 박경주 | B48: 9 | C48: 1
A49: StarCrap | B49: 8 | C49: 1
A50: 까치 | B50: 6 | C50: 1
A51: Oscar | B51: 8 | C51: 1
A52: IIIIIIIIIIII | B52: 55 | C52: 1
A53: VIP | B53: 28 | C53: 1
A54: 잇히힝 | B54: 12 | C54: 1
A55: Jazztronik | B55: 14 | C55: 1
A56: KukHyuN | B56: 10 | C56: 1
A57: wOo | B57: 9 | C57: 1
A58: lykgkgk | B58: 23 | C58: 1
A59: Ultralisk | B59: 39 | C59: 1
A60: Sublux | B60: 11 | C60: 1
A61: 금니가몇개냐 | B61: 50 | C61: 1
A62: InShadowS | B62: 12 | C62: 1
A63: 지동 | B63: 2 | C63: 1
A64: 악어 | B64: 11 | C64: 1
A65: CLOVER | B65: 44 | C65: 1
A66: jungAn | B66: 8 | C66: 1
A67: DivineMIR | B67: 13 | C67: 1
A68: SlowLoris | B68: 0 | C68: 1
A69: JIA | B69: 7 | C69: 1
A70: IllIlIlIlIlI | B70: 2 | C70: 1
A71: miDeiay | B71: 8 | C71: 1
A72: mlucifer | B72: 10 | C72: 1
A73: Funkymunky | B73: 6 | C73: 1
A74: steven | B74: 10 | C74: 1
A75: mos | B75: 8 | C75: 1
A76: LoveNaNa | B76: 11 | C76: 1
A77: 아이유 | B77: 8 | C77: 1
A78: JungQLee | B78: 22 | C78: 1
A79: AMSimpler | B79: 23 | C79: 1
A80: TCWang | B80: 8 | C80: 1
A81: Dastan | B81: 0 | C81: 1
A82: 크크푸하하 | B82: 6 | C82: 1
A83: picachu | B83: 2 | C83: 1
A84: AndrewHanks | B84: 24 | C84: 1
A85: GoodGame | B85: 42 | C85: 1
A86: DemonLOL | B86: 6 | C86: 1
A87: LamontLu | B87: 55 | C87: 1
A88: tomcy | B88: 15 | C88: 1
A89: JeGi | B89: 4 | C89: 1
A90: kimgwang | B90: 25 | C90: 1
A91: FUZZYDUNLOP | B91: 20 | C91: 1
A92: 뉴스쿨 | B92: 8 | C92: 1
A93: CoryLee | B93: 0 | C93: 1
A94: MetaKim | B94: 30 | C94: 1
A95: 강남쭈니니 | B95: 11 | C95: 1
A96: 愛錫老婆豬 | B96: 8 | C96: 1
A97: INnoVation | B97: 31 | C97: 1
A98: 불꽃남자 | B98: 63 | C98: 1
A99: Caesar | B99: 24 | C99: 1
A100: kms | B100: 7 | C100: 1
A101: Yuan | B101: 15 | C101: 1
A102: 띠발로마 | B102: 2 | C102: 1
A103: 단원고진규 | B103: 70 | C103: 1
A104: Rumen | B104: 11 | C104: 1
A105: MoonStar | B105: 23 | C105: 1
A106: Kai | B106: 4 | C106: 1
A107: webking | B107: 30 | C107: 1
A108: zzoroman | B108: 2 | C108: 1
A109: WxY | B109: 23 | C109: 1
A110: Fillipovic | B110: 23 | C110: 1
A111: mgaicspeed | B111: 10 | C111: 1
A112: MakerJeong | B112: 0 | C112: 1
A113: 줄라이 | B113: 10 | C113: 1
A114: Piano | B114: 14 | C114: 1
A115: 누렁이 | B115: 33 | C115: 1
A116: TheFCU | B116: 9 | C116: 1
A117: TsungTW | B117: 56 | C117: 1
A118: 잉카 | B118: 37 | C118: 1
A119: Navy | B119: 2 | C119: 1
A120: 勇者阿寶 | B120: 23 | C120: 1
A121: you | B121: 89 | C121: 1
A122: 하나포확 | B122: 41 | C122: 1
A123: CrystalRain | B123: 10 | C123: 1
A124: Avenger | B124: 15 | C124: 1
A125: SuperKIDs | B125: 9 | C125: 1
A126: JoHNnYBuLSa | B126: 0 | C126: 1
A127: 칼랄목사 | B127: 8 | C127: 1
A128: 문채원여신 | B128: 99 | C128: 1
A129: MarTiNi | B129: 52 | C129: 1
A130: ShinEtoss | B130: 52 | C130: 1
A131: 한마바퀴 | B131: 19 | C131: 1
A132: 제우스 | B132: 9 | C132: 1
A133: baby | B133: 9 | C133: 1
A134: 코피두잔 | B134: 13 | C134: 1
A135: llllllllllll | B135: 9 | C135: 1
A136: NauTiCa | B136: 8 | C136: 1
A137: LoveLeaf | B137: 72 | C137: 1
A138: kailling | B138: 9 | C138: 1
A139: Martin | B139: 35 | C139: 1
A140: FUN | B140: 8 | C140: 1
A141: 야마모토쨩 | B141: 8 | C141: 1
A142: Argus | B142: 7 | C142: 1
A143: 홍치님 | B143: 50 | C143: 1
A144: DarkSpear | B144: 11 | C144: 1
A145: specific | B145: 28 | C145: 1
A146: Moon | B146: 11 | C146: 1
A147: Han | B147: 29 | C147: 1
A148: 熱血戰士 | B148: 12 | C148: 1
A149: seal | B149: 7 | C149: 1
A150: 박얼짱 | B150: 0 | C150: 1
A151: 도톡쿠 | B151: 11 | C151: 1
A152: lIlIlIlIlIlI | B152: 2 | C152: 1
A153: Strawberry | B153: 1 | C153: 1
A154: YULULULU | B154: 13 | C154: 1
A155: 다가져와 | B155: 10 | C155: 1
A156: 한설 | B156: 40 | C156: 1
A157: Mahalo | B157: 44 | C157: 1
A158: ULTRAzerg | B158: 8 | C158: 1
A159: 스타벅스 | B159: 9 | C159: 1
A160: Cheetah | B160: 10 | C160: 1
A161: NaDa | B161: 8 | C161: 1
A162: 하데스 | B162: 6 | C162: 1
A163: hipass | B163: 10 | C163: 1
A164: 통곡의믹키 | B164: 14 | C164: 1
A165: 버스 | B165: 8 | C165: 1
A166: 고기사 | B166: 27 | C166: 1
A167: llllllllllll | B167: 7 | C167: 1
A168: platim | B168: 54 | C168: 1
A169: 은철채 | B169: 2 | C169: 1
A170: MaSoSGlory | B170: 42 | C170: 1
A171: 아트당구장 | B171: 2 | C171: 1
A172: ddfactory | B172: 2 | C172: 1
A173: 아이유 | B173: 8 | C173: 1
A174: llllllllllll | B174: 22 | C174: 1
A175: 오마나 | B175: 29 | C175: 1
A176: Celebrateh | B176: 4 | C176: 1
A177: 문경민이 | B177: 8 | C177: 1
A178: Imago | B178: 0 | C178: 1
A179: SuAms | B179: 4 | C179: 1
A180: Reki | B180: 0 | C180: 1
A181: falls | B181: 66 | C181: 1
A182: 난나다 | B182: 12 | C182: 1
A183: psg | B183: 24 | C183: 1
A184: prinkeps | B184: 12 | C184: 1
A185: 지못미 | B185: 14 | C185: 1
A186: 함지 | B186: 9 | C186: 1
A187: DaWuSeL | B187: 6 | C187: 1
A188: Lemo | B188: 73 | C188: 1
A189: 얼굴도저글링 | B189: 37 | C189: 1
A190: INTERMILAN | B190: 15 | C190: 1
A191: MichaelWYD | B191: 6 | C191: 1
A192: 베틀크루져주차중 | B192: 9 | C192: 1
A193: 영웅전설 | B193: 40 | C193: 1
A194: 뽀로로 | B194: 1 | C194: 1
A195: gsl | B195: 28 | C195: 1
A196: 박승부 | B196: 40 | C196: 1
A197: 만덕창투 | B197: 0 | C197: 1
A198: Domino | B198: 9 | C198: 1
A199: 월포로 | B199: 13 | C199: 1
A200: lllllllll | B200: 5 | C200: 1
... 5937 more rows

Sheet Diamond
A1: DIESEL | B1: 8 | C1: 1
A2: LostBaobao | B2: 11 | C2: 1
A3: Starlight | B3: 30 | C3: 1
A4: 嬌尐喵 | B4: 3 | C4: 1
A5: 우주신사 | B5: 8 | C5: 1
A6: 好潮的宅男 | B6: 6 | C6: 1
A7: 생구 | B7: 4 | C7: 1
A8: Jubei | B8: 4 | C8: 1
A9: llllllllllll | B9: 13 | C9: 1
A10: TheRichMvP | B10: 9 | C10: 1
A11: BleSs | B11: 10 | C11: 1
A12: RavaGe | B12: 9 | C12: 1
A13: PPsStorM | B13: 32 | C13: 1
A14: NEXaND | B14: 4 | C14: 1
A15: llllllllllll | B15: 15 | C15: 1
A16: WinterRush | B16: 45 | C16: 1
A17: NalZa | B17: 25 | C17: 1
A18: ZergSeries | B18: 27 | C18: 1
A19: HellsStorM | B19: 23 | C19: 1
A20: LoveyDovey | B20: 9 | C20: 1
A21: TheHeroToss | B21: 2 | C21: 1
A22: 석만이 | B22: 13 | C22: 1
A23: VTBloodySun | B23: 43 | C23: 1
A24: llllllllllll | B24: 25 | C24: 1
A25: llllllllllll | B25: 9 | C25: 1
A26: lulu | B26: 9 | C26: 1
A27: 마크 | B27: 13 | C27: 1
A28: Aya | B28: 42 | C28: 1
A29: llllllllllll | B29: 2 | C29: 1
A30: lllIIIIIllll | B30: 3 | C30: 1
A31: joker | B31: 8 | C31: 1
A32: BrandNewDay | B32: 0 | C32: 1
A33: KoscleeCxx | B33: 41 | C33: 1
A34: 자취견블로개 | B34: 104 | C34: 1
A35: AngelicLayer | B35: 38 | C35: 1
A36: supreme | B36: 33 | C36: 1
A37: llllllllllll | B37: 15 | C37: 1
A38: iRealEyes | B38: 0 | C38: 1
A39: Rain | B39: 1 | C39: 1
A40: SoBaDRush | B40: 8 | C40: 1
A41: OddSense | B41: 1 | C41: 1
A42: BeauTeen | B42: 9 | C42: 1
A43: 커북이 | B43: 9 | C43: 1
A44: 이성계 | B44: 11 | C44: 1
A45: 뮤탈몬스터 | B45: 41 | C45: 1
A46: SurprisedCat | B46: 14 | C46: 1
A47: GogojOey | B47: 61 | C47: 1
A48: BorisRush | B48: 46 | C48: 1
A49: GePinTo | B49: 11 | C49: 1
A50: 筆電人族 | B50: 39 | C50: 1
A51: llllllIIIIII | B51: 0 | C51: 1
A52: Eclipse | B52: 9 | C52: 1
A53: 눈사람 | B53: 60 | C53: 1
A54: Canon | B54: 9 | C54: 1
A55: 狼狼 | B55: 232 | C55: 3
A56: 김동현 | B56: 45 | C56: 1
A57: LUNAVIS | B57: 28 | C57: 1
A58: GGyou | B58: 43 | C58: 1
A59: 지수공주 | B59: 13 | C59: 1
A60: 튼튼한노예 | B60: 5 | C60: 1
A61: Astharoshe | B61: 0 | C61: 1
A62: 사과맛산삼 | B62: 1 | C62: 1
A63: Mind | B63: 8 | C63: 1
A64: llllllllllll | B64: 1 | C64: 1
A65: 돌하루방 | B65: 8 | C65: 1
A66: IIIIIIIIIIII | B66: 10 | C66: 1
A67: llllllllllll | B67: 8 | C67: 1
A68: Nerevar | B68: 10 | C68: 1
A69: 켈로그콘프로토스 | B69: 86 | C69: 1
A70: 장진성박사 | B70: 1 | C70: 1
A71: HIYE | B71: 1 | C71: 1
A72: bnvm | B72: 7 | C72: 1
A73: BMW | B73: 22 | C73: 1
A74: TsuKi | B74: 21 | C74: 1
A75: AlisonPrime | B75: 37 | C75: 1
A76: Lochts | B76: 25 | C76: 1
A77: IlIlIllIlIll | B77: 6 | C77: 1
A78: 스폰지밥 | B78: 12 | C78: 1
A79: Really | B79: 43 | C79: 1
A80: llllllllllll | B80: 1 | C80: 1
A81: 硬毛老鼠 | B81: 9 | C81: 1
A82: Sigol | B82: 11 | C82: 1
A83: Vinny | B83: 5 | C83: 1
A84: 개념원리 | B84: 11 | C84: 1
A85: 냐옹아멍멍해 | B85: 14 | C85: 1
A86: 온게임넷김작가 | B86: 12 | C86: 1
A87: NeothEOne | B87: 5 | C87: 1
A88: IIIllllIIllI | B88: 1 | C88: 1
A89: 小薇 | B89: 9 | C89: 1
A90: 三分娇燥七分狂傲 | B90: 5 | C90: 1
A91: Pororing | B91: 13 | C91: 1
A92: Optimus | B92: 6 | C92: 1
A93: 나쁜남자 | B93: 7 | C93: 1
A94: kernel | B94: 20 | C94: 1
A95: 테란이면점추쓴다 | B95: 7 | C95: 1
A96: IIIIIIIIIIII | B96: 6 | C96: 1
A97: ErUsagi | B97: 40 | C97: 1
A98: MaBaO | B98: 23 | C98: 1
A99: DerekRush | B99: 5 | C99: 1
A100: UnTouChable | B100: 10 | C100: 1
A101: 김밍구 | B101: 86 | C101: 1
A102: toozi | B102: 9 | C102: 1
A103: GrayBearSolo | B103: 12 | C103: 1
A104: llllllllllll | B104: 8 | C104: 1
A105: THILIT | B105: 54 | C105: 1
A106: yoeah | B106: 0 | C106: 1
A107: Tapdance | B107: 23 | C107: 1
A108: raemiean | B108: 38 | C108: 1
A109: Artanis | B109: 9 | C109: 1
A110: PoorPotato | B110: 65 | C110: 1
A111: 내생각을알아봐 | B111: 40 | C111: 1
A112: bee | B112: 10 | C112: 1
A113: 동네삐꾸 | B113: 78 | C113: 1
A114: Quaaaq | B114: 54 | C114: 1
A115: PENIZLORD | B115: 24 | C115: 1
A116: NEET | B116: 14 | C116: 1
A117: 엘류엘 | B117: 0 | C117: 1
A118: 盲打星海 | B118: 51 | C118: 1
A119: IIIIIIIII | B119: 8 | C119: 1
A120: 봉줄라이 | B120: 12 | C120: 1
A121: 이연희 | B121: 1 | C121: 1
A122: Artanis | B122: 10 | C122: 1
A123: MVPJin | B123: 23 | C123: 1
A124: Jangmose | B124: 15 | C124: 1
A125: llllllllllll | B125: 36 | C125: 1
A126: KillERWhale | B126: 45 | C126: 1
A127: Zycart | B127: 108 | C127: 2
A128: 렌네르 | B128: 1 | C128: 1
A129: UprisinG | B129: 11 | C129: 1
A130: BladeofEyre | B130: 1 | C130: 1
A131: realshall | B131: 41 | C131: 1
A132: Zerel | B132: 3 | C132: 1
A133: ssolo | B133: 14 | C133: 1
A134: MyLove | B134: 12 | C134: 1
A135: MuProtoss | B135: 4 | C135: 1
A136: Mars | B136: 10 | C136: 1
A137: yeori | B137: 2 | C137: 1
A138: 打遍亚洲 | B138: 13 | C138: 1
A139: 상동 | B139: 8 | C139: 1
A140: JaYbOc | B140: 25 | C140: 1
A141: llllllllllll | B141: 32 | C141: 1
A142: pluto | B142: 0 | C142: 1
A143: zvx | B143: 1 | C143: 1
A144: 페르난도 | B144: 23 | C144: 1
A145: MaDHealeR | B145: 40 | C145: 1
A146: SkyWalker | B146: 63 | C146: 1
A147: DanDi | B147: 8 | C147: 1
A148: llIIIIIlllII | B148: 42 | C148: 1
A149: 永遠撿鑽石潮爽的 | B149: 25 | C149: 1
A150: 김민다이야 | B150: 28 | C150: 1
A151: 殖民站站長 | B151: 40 | C151: 1
A152: 三世 | B152: 20 | C152: 1
A153: BAEK | B153: 6 | C153: 1
A154: Surely | B154: 2 | C154: 1
A155: Risky | B155: 27 | C155: 1
A156: 一夢換須臾 | B156: 9 | C156: 1
A157: Vivid | B157: 13 | C157: 1
A158: GaeMi | B158: 43 | C158: 1
A159: BeiBei | B159: 24 | C159: 1
A160: 골리앗몬스터 | B160: 27 | C160: 1
A161: SumMerStorM | B161: 22 | C161: 1
A162: 黑子哲也 | B162: 33 | C162: 1
A163: 국어교육과 | B163: 13 | C163: 1
A164: 끼끼꼬꼬깔깔깔 | B164: 137 | C164: 2
A165: 파워 | B165: 22 | C165: 1
A166: 제한프 | B166: 7 | C166: 1
A167: 미드가르드 | B167: 8 | C167: 1
A168: You | B168: 6 | C168: 1
A169: Wasp | B169: 9 | C169: 1
A170: 거신흉노 | B170: 10 | C170: 1
A171: Tancredi | B171: 2 | C171: 1
A172: RevoLutioN | B172: 54 | C172: 1
A173: Marchin | B173: 16 | C173: 1
A174: NaKiMuShi | B174: 6 | C174: 1
A175: 서교동최강자 | B175: 8 | C175: 1
A176: Ren | B176: 9 | C176: 1
A177: limclimcsanc | B177: 1 | C177: 1
A178: 코시가야코마리 | B178: 3 | C178: 1
A179: SoWisheD | B179: 7 | C179: 1
A180: SpeedMachine | B180: 0 | C180: 1
A181: Lime | B181: 2 | C181: 1
A182: 랫서팬더 | B182: 4 | C182: 1
A183: MaXWell | B183: 9 | C183: 1
A184: ShowBiz | B184: 41 | C184: 1
A185: lllllllllll | B185: 135 | C185: 2
A186: DevilLIN | B186: 15 | C186: 1
A187: IIIIlllIl | B187: 8 | C187: 1
A188: 창공의분노 | B188: 42 | C188: 1
A189: Maserati | B189: 12 | C189: 1
A190: 고글코 | B190: 14 | C190: 1
A191: Zerg | B191: 8 | C191: 1
A192: 하나미치 | B192: 22 | C192: 1
A193: 쭌이 | B193: 0 | C193: 1
A194: JUSTICE | B194: 6 | C194: 1
A195: 안녕하세요 | B195: 142 | C195: 2
A196: 저그유저 | B196: 9 | C196: 1
A197: AKAISora | B197: 50 | C197: 1
A198: KinG | B198: 12 | C198: 1
A199: CRYSTAL | B199: 68 | C199: 1
A200: RichBear | B200: 7 | C200: 1
... 4441 more rows

Sheet Master
A1: INnoVation | B1: 104 | C1: 1
A2: llllllllllll | B2: 14 | C2: 1
A3: llllllllllll | B3: 18 | C3: 1
A4: llllllllllll | B4: 252 | C4: 2
A5: llllllllllll | B5: 296 | C5: 2
A6: IlIlIlIIIIll | B6: 523 | C6: 3
A7: Stats | B7: 425 | C7: 3
A8: SuppyRC | B8: 66 | C8: 1
A9: llllllllllll | B9: 104 | C9: 1
A10: Montblanc | B10: 67 | C10: 1
A11: chocolateboy | B11: 1 | C11: 1
A12: IIIIIIIIIIII | B12: 156 | C12: 1
A13: IlIlIlIlIlIl | B13: 567 | C13: 4
A14: llllllllllll | B14: 555 | C14: 4
A15: xiaozhu | B15: 12 | C15: 1
A16: IIIIIIIIIIII | B16: 404 | C16: 3
A17: 연애중이라겜안함 | B17: 9 | C17: 1
A18: Yunyung | B18: 31 | C18: 1
A19: IlllllIII | B19: 35 | C19: 1
A20: 모를꺼야 | B20: 13 | C20: 1
A21: IDkid | B21: 15 | C21: 1
A22: 변경권무한키득 | B22: 231 | C22: 2
A23: IlIlIlIlIlIl | B23: 488 | C23: 3
A24: llllllllllll | B24: 294 | C24: 2
A25: llllllllllll | B25: 266 | C25: 2
A26: Lisianthus | B26: 55 | C26: 1
A27: lIllIlllIlll | B27: 13 | C27: 1
A28: llllllllllll | B28: 15 | C28: 1
A29: Neige | B29: 49 | C29: 1
A30: Calga | B30: 39 | C30: 1
A31: Samuel | B31: 119 | C31: 1
A32: 꽃돼지테란 | B32: 103 | C32: 1
A33: IIIIlIlIlIlI | B33: 3 | C33: 1
A34: 연애해서카호버림 | B34: 218 | C34: 2
A35: aLive | B35: 97 | C35: 1
A36: 아카페라 | B36: 12 | C36: 1
A37: IlIlIlIlIlII | B37: 45 | C37: 1
A38: NaTuRal | B38: 25 | C38: 1
A39: 게임잘하고싶다 | B39: 38 | C39: 1
A40: llllllllllll | B40: 718 | C40: 4
A41: lIlIlIlIlIlI | B41: 445 | C41: 3
A42: Serpente | B42: 17 | C42: 1
A43: llllllllllll | B43: 14 | C43: 1
A44: 백경대 | B44: 473 | C44: 3
A45: llllllllllll | B45: 719 | C45: 4
A46: llllllllllll | B46: 240 | C46: 2
A47: HoeJJa | B47: 65 | C47: 1
A48: llllllllllll | B48: 40 | C48: 1
A49: RabbitHouse | B49: 305 | C49: 2
A50: Moon | B50: 60 | C50: 1
A51: kashrut | B51: 164 | C51: 1
A52: 神秘男子 | B52: 21 | C52: 1
A53: 후르츠딜러 | B53: 8 | C53: 1
A54: llllllllllll | B54: 296 | C54: 2
A55: llllllllllll | B55: 13 | C55: 1
A56: frayCrimson | B56: 13 | C56: 1
A57: IIIIIIIIIIII | B57: 46 | C57: 1
A58: Nette | B58: 35 | C58: 1
A59: iGiA | B59: 526 | C59: 3
A60: sOs | B60: 258 | C60: 2
A61: 현명한팬더 | B61: 14 | C61: 1
A62: VINES | B62: 189 | C62: 2
A63: llllllllllll | B63: 58 | C63: 1
A64: IIIIIIIIIII | B64: 322 | C64: 2
A65: YeonSu | B65: 16 | C65: 1
A66: 아이스캐슬 | B66: 48 | C66: 1
A67: IIIIIIIIIIII | B67: 12 | C67: 1
A68: 一捅星际 | B68: 37 | C68: 1
A69: LiquidTaeJa | B69: 601 | C69: 4
A70: 뽀미볼매 | B70: 75 | C70: 1
A71: 냉돌 | B71: 23 | C71: 1
A72: llllllllllll | B72: 13 | C72: 1
A73: 이준호 | B73: 3 | C73: 1
A74: 꽃비 | B74: 1 | C74: 1
A75: NXZ | B75: 129 | C75: 1
A76: llllllllllll | B76: 16 | C76: 1
A77: 아메리카노 | B77: 14 | C77: 1
A78: 귀신 | B78: 32 | C78: 1
A79: llllllllllll | B79: 460 | C79: 3
A80: llllllllllll | B80: 468 | C80: 3
A81: llllllllllll | B81: 15 | C81: 1
A82: NiceAN | B82: 1 | C82: 1
A83: ColoUrDFiRsT | B83: 9 | C83: 1
A84: Joker | B84: 5 | C84: 1
A85: lIlIlllIIlIl | B85: 13 | C85: 1
A86: llllllllllll | B86: 255 | C86: 2
A87: llllllllllll | B87: 262 | C87: 2
A88: Remedy | B88: 14 | C88: 1
A89: 老爺您差勁了 | B89: 21 | C89: 1
A90: Dragon | B90: 293 | C90: 2
A91: FIGHTO | B91: 94 | C91: 1
A92: iGXY | B92: 502 | C92: 3
A93: Teoju | B93: 129 | C93: 1
A94: AxImpact | B94: 26 | C94: 1
A95: Anubis | B95: 16 | C95: 1
A96: llllllllllll | B96: 65 | C96: 1
A97: 新手 | B97: 14 | C97: 1
A98: Pak | B98: 15 | C98: 1
A99: nbridge | B99: 6 | C99: 1
A100: IIIIIIIIIIII | B100: 12 | C100: 1
A101: 너구리 | B101: 16 | C101: 1
A102: IIIIIIIlIIII | B102: 1047 | C102: 6
A103: ShangStorM | B103: 12 | C103: 1
A104: Strategy | B104: 105 | C104: 1
A105: llllllllll | B105: 130 | C105: 1
A106: lllllllllll | B106: 37 | C106: 1
A107: Dandy | B107: 9 | C107: 1
A108: llllllllllll | B108: 470 | C108: 3
A109: 갑동이 | B109: 462 | C109: 3
A110: IIIllllIIlll | B110: 2 | C110: 1
A111: llllllllllll | B111: 99 | C111: 1
A112: llllllllllll | B112: 801 | C112: 5
A113: 으리 | B113: 237 | C113: 2
A114: Bally | B114: 142 | C114: 1
A115: IIIIIIIIIIII | B115: 24 | C115: 1
A116: TheChyz | B116: 0 | C116: 1
A117: IIIIIIIIIIII | B117: 16 | C117: 1
A118: Cozy | B118: 263 | C118: 2
A119: UniCooni | B119: 55 | C119: 1
A120: Won | B120: 103 | C120: 1
A121: Sustainable | B121: 100 | C121: 1
A122: DhcShawN | B122: 30 | C122: 1
A123: Guitarcheese | B123: 353 | C123: 2
A124: llllllllllll | B124: 116 | C124: 1
A125: 내가천재일뿐 | B125: 403 | C125: 3
A126: 초유량 | B126: 54 | C126: 1
A127: BreakOutLYS | B127: 16 | C127: 1
A128: IlIlllIIIlIl | B128: 221 | C128: 2
A129: Lyn | B129: 49 | C129: 1
A130: KKaMSI | B130: 111 | C130: 1
A131: llllllllllll | B131: 26 | C131: 1
A132: WhiteSox | B132: 74 | C132: 1
A133: 군대가기전부침 | B133: 22 | C133: 1
A134: Rosso | B134: 197 | C134: 2
A135: IlIlIlIlIlIl | B135: 341 | C135: 2
A136: 華山派令狐沖 | B136: 74 | C136: 1
A137: Doublelift | B137: 77 | C137: 1
A138: IIIIIIIIIIII | B138: 68 | C138: 1
A139: Law | B139: 0 | C139: 1
A140: kakarott | B140: 76 | C140: 1
A141: llllllllllll | B141: 316 | C141: 2
A142: Joker | B142: 256 | C142: 2
A143: 정주원 | B143: 12 | C143: 1
A144: badboy | B144: 9 | C144: 1
A145: 이게임망한듯 | B145: 43 | C145: 1
A146: VetteL | B146: 13 | C146: 1
A147: lIlIlIlIlIlI | B147: 34 | C147: 1
A148: IIlIllllllll | B148: 568 | C148: 4
A149: IIIIIIIIIIII | B149: 114 | C149: 1
A150: Arwin | B150: 15 | C150: 1
A151: Maximum | B151: 1 | C151: 1
A152: 한국말잘해요 | B152: 13 | C152: 1
A153: inthecity | B153: 21 | C153: 1
A154: 오늘뭐해이따뭐해 | B154: 435 | C154: 3
A155: IlIIIlllIl | B155: 137 | C155: 1
A156: Buzz | B156: 411 | C156: 3
A157: SensuaL | B157: 12 | C157: 1
A158: WayStorM | B158: 36 | C158: 1
A159: 포카리 | B159: 196 | C159: 2
A160: 세월호기적을제발 | B160: 15 | C160: 1
A161: 마하나임 | B161: 49 | C161: 1
A162: LaDouJin | B162: 0 | C162: 1
A163: Squeeze | B163: 52 | C163: 1
A164: llllllllllll | B164: 39 | C164: 1
A165: 웨스트브룩 | B165: 12 | C165: 1
A166: 바라기 | B166: 4 | C166: 1
A167: UnicMarinE | B167: 15 | C167: 1
A168: Clayster | B168: 503 | C168: 3
A169: Togogirl | B169: 140 | C169: 1
A170: YYSciJerK | B170: 89 | C170: 1
A171: WoWSoCute | B171: 15 | C171: 1
A172: IIIIIIIIIIII | B172: 660 | C172: 4
A173: glAre | B173: 14 | C173: 1
A174: IIIIIIIIIIII | B174: 15 | C174: 1
A175: SamsungRorO | B175: 0 | C175: 1
A176: IlIlIIlIIlIl | B176: 140 | C176: 1
A177: 나달 | B177: 6 | C177: 1
A178: IrishLad | B178: 56 | C178: 1
A179: llllllllllll | B179: 31 | C179: 1
A180: IIIIIIIIIIII | B180: 679 | C180: 4
A181: IllIllIllIll | B181: 225 | C181: 2
A182: EvanS | B182: 360 | C182: 2
A183: PheRomone | B183: 8 | C183: 1
A184: 无锡市南长区 | B184: 16 | C184: 1
A185: Minuit | B185: 42 | C185: 1
A186: 사악한선인장 | B186: 68 | C186: 1
A187: llllllllllll | B187: 0 | C187: 1
A188: llllllllllll | B188: 1053 | C188: 6
A189: Kosmos | B189: 198 | C189: 2
A190: molla | B190: 220 | C190: 2
A191: IIIIIIIIIIII | B191: 65 | C191: 1
A192: IIIIIIIIIIII | B192: 22 | C192: 1
A193: TERRAN | B193: 43 | C193: 1
A194: llllllllllll | B194: 68 | C194: 1
A195: aGiLe | B195: 26 | C195: 1
A196: IIIIIIIIIIII | B196: 180 | C196: 1
A197: llllllllllll | B197: 511 | C197: 3
A198: Blade | B198: 55 | C198: 1
A199: HeartOTZling | B199: 14 | C199: 1
A200: SecondWind | B200: 82 | C200: 1
... 714 more rows

Sheet GM
A1: llllllIlllll | B1: 47 | C1: 1
A2: llllllllllll | B2: 24 | C2: 1
A3: llllllllllll | B3: 64 | C3: 1
A4: IlIIIIlllIlI | B4: 22 | C4: 1
A5: IlIlIllIlIll | B5: 17 | C5: 1
A6: llllllllllll | B6: 63 | C6: 1
A7: llllllllllll | B7: 26 | C7: 1
A8: llllllllllll | B8: 21 | C8: 1
A9: llllllllllll | B9: 16 | C9: 1
A10: llllllllllll | B10: 23 | C10: 1
A11: llllllllllll | B11: 23 | C11: 1
A12: llllllllllll | B12: 51 | C12: 1
A13: llllllllllll | B13: 38 | C13: 1
A14: llllllllllll | B14: 124 | C14: 1
A15: soO | B15: 37 | C15: 1
A16: IlIlIlIIIIll | B16: 151 | C16: 1
A17: llllllllllll | B17: 22 | C17: 1
A18: IIllIIIlIIll | B18: 0 | C18: 1
A19: llllllllllll | B19: 20 | C19: 1
A20: IIIIIIIIIIII | B20: 94 | C20: 1
A21: yoeFWLeenock | B21: 14 | C21: 1
A22: IlIllIlIIIlI | B22: 92 | C22: 1
A23: llllllllllll | B23: 69 | C23: 1
A24: llllllllllll | B24: 70 | C24: 1
A25: lIIlllIIlIll | B25: 116 | C25: 1
A26: llllIIIIllll | B26: 14 | C26: 1
A27: llllllllllll | B27: 17 | C27: 1
A28: lIlIlIlIlI | B28: 12 | C28: 1
A29: llllllllllll | B29: 38 | C29: 1
A30: llllllllllll | B30: 141 | C30: 1
A31: llllllllllll | B31: 13 | C31: 1
A32: IIIIllllIIII | B32: 19 | C32: 1
A33: IlIlIlIlIlIl | B33: 21 | C33: 1
A34: llllllllllll | B34: 22 | C34: 1
A35: llllllllll | B35: 45 | C35: 1
A36: IlIlIlIlIl | B36: 54 | C36: 1
A37: llllllllllll | B37: 10 | C37: 1
A38: IlIlIlIlIlIl | B38: 55 | C38: 1
A39: llllIIllIll | B39: 8 | C39: 1
A40: llllllllllll | B40: 149 | C40: 1
A41: llllllllllll | B41: 22 | C41: 1
A42: Center | B42: 17 | C42: 1
A43: llllllllllll | B43: 19 | C43: 1
A44: SuperNova | B44: 0 | C44: 1
A45: IllIllIlIlII | B45: 32 | C45: 1
A46: llllllllllll | B46: 110 | C46: 1
A47: llllllllllll | B47: 13 | C47: 1
A48: llllllllllll | B48: 68 | C48: 1
A49: lllIlllIllll | B49: 38 | C49: 1
A50: IlIllIlIIIlI | B50: 62 | C50: 1
A51: llllllllllll | B51: 46 | C51: 1
A52: llllllllllll | B52: 41 | C52: 1
A53: llllllllllll | B53: 165 | C53: 1
A54: llllllllllll | B54: 16 | C54: 1
A55: llllllllllll | B55: 50 | C55: 1
A56: IIlllllllllI | B56: 16 | C56: 1
A57: llllllllllll | B57: 51 | C57: 1
A58: llllllllllll | B58: 24 | C58: 1
A59: lllllIlllIll | B59: 16 | C59: 1
A60: lIlIlIlIlI | B60: 17 | C60: 1
A61: llllllllllll | B61: 11 | C61: 1
A62: lIlIIllIIllI | B62: 3 | C62: 1
A63: llllllllllll | B63: 50 | C63: 1
A64: llllllllllll | B64: 14 | C64: 1
A65: llllllllllll | B65: 21 | C65: 1
A66: IIlIllIIIlll | B66: 21 | C66: 1
A67: llllllllllll | B67: 50 | C67: 1
A68: llllllllllll | B68: 124 | C68: 1
A69: llllllllllll | B69: 23 | C69: 1
A70: 미로 | B70: 15 | C70: 1
A71: llllllllllll | B71: 40 | C71: 1
A72: lllllllllll | B72: 12 | C72: 1
A73: llIIllIIll | B73: 23 | C73: 1
A74: lIIIIlIIllll | B74: 7 | C74: 1
A75: llllIIIIllII | B75: 20 | C75: 1
A76: llllllllllll | B76: 39 | C76: 1
A77: llllllllllll | B77: 50 | C77: 1
A78: llllllllllll | B78: 0 | C78: 1
A79: lllIlIllIlI | B79: 99 | C79: 1
A80: IIIIIIIIIIII | B80: 20 | C80: 1
A81: llllllllllll | B81: 0 | C81: 1
A82: 김태균 | B82: 0 | C82: 1
A83: IIIllIIlIIlI | B83: 153 | C83: 1
A84: Bomber | B84: 67 | C84: 1
A85: IIIllIIIIll | B85: 0 | C85: 1
A86: llllllllllll | B86: 9 | C86: 1
A87: Symbol | B87: 18 | C87: 1
A88: llllllllllll | B88: 72 | C88: 1
A89: llIlIIllIIlI | B89: 48 | C89: 1
A90: IIIIIIllllII | B90: 12 | C90: 1
A91: 사신 | B91: 119 | C91: 1
A92: llllllllllll | B92: 19 | C92: 1
A93: llllllllllll | B93: 174 | C93: 1
A94: llllllllllll | B94: 13 | C94: 1
A95: llllIIIIllll | B95: 31 | C95: 1
A96: lIlIlIlIlIlI | B96: 12 | C96: 1
A97: IllIIllllI | B97: 57 | C97: 1
A98: Brown | B98: 3 | C98: 1
A99: llllllllllll | B99: 84 | C99: 1
A100: KellerMaN | B100: 15 | C100: 1
A101: llllllllllll | B101: 10 | C101: 1
A102: IIIIIlllllll | B102: 149 | C102: 1
A103: llllllllll | B103: 10 | C103: 1
A104: llllllllllll | B104: 3 | C104: 1
A105: Toodming | B105: 78 | C105: 1
A106: NesTea | B106: 49 | C106: 1
A107: llllllllllll | B107: 40 | C107: 1
A108: llllllllllll | B108: 6 | C108: 1
A109: 엄지훈짱 | B109: 9 | C109: 1
A110: TANGTANG | B110: 0 | C110: 1
A111: llllllllllll | B111: 43 | C111: 1
A112: llllllllllll | B112: 115 | C112: 1
A113: IIIIlllIIIlI | B113: 39 | C113: 1
A114: IIIIIIIIIIII | B114: 0 | C114: 1
A115: llllllllllll | B115: 14 | C115: 1
A116: StatePrime | B116: 0 | C116: 1
A117: IIIIIIIIIIII | B117: 164 | C117: 1
A118: llllllllllll | B118: 8 | C118: 1
A119: MaJihye | B119: 21 | C119: 1
A120: 八意永琳 | B120: 76 | C120: 1
A121: llIlllIIIllI | B121: 13 | C121: 1
A122: llllllllllll | B122: 14 | C122: 1
A123: llllllllllll | B123: 7 | C123: 1
A124: llllllllllII | B124: 47 | C124: 1
A125: llllllllllll | B125: 11 | C125: 1
A126: IMMvp | B126: 117 | C126: 1
A127: Life | B127: 83 | C127: 1
A128: Blast | B128: 13 | C128: 1
A129: llllllllllll | B129: 10 | C129: 1
A130: lIlIlIllllll | B130: 87 | C130: 1
A131: eve | B131: 38 | C131: 1
A132: IIIIIIIIIIII | B132: 150 | C132: 1
A133: llllllllllll | B133: 53 | C133: 1
A134: Everyday | B134: 19 | C134: 1
A135: llllllllllll | B135: 18 | C135: 1
A136: llllllllllll | B136: 8 | C136: 1
A137: Temujin | B137: 23 | C137: 1
A138: llllllllllll | B138: 1 | C138: 1
A139: IlllIlllIIII | B139: 10 | C139: 1
A140: llllllllllll | B140: 46 | C140: 1
A141: NaDo | B141: 121 | C141: 1
A142: lIlIlIlI | B142: 0 | C142: 1
A143: llllllllllll | B143: 122 | C143: 1
A144: llllllllllll | B144: 10 | C144: 1
A145: llllllllllll | B145: 51 | C145: 1
A146: StuN | B146: 16 | C146: 1
A147: llllllllllll | B147: 69 | C147: 1
A148: llllllllll | B148: 22 | C148: 1
A149: 스타맨 | B149: 43 | C149: 1
A150: IIlIlIllIllI | B150: 71 | C150: 1
A151: 노게임노스트레스 | B151: 19 | C151: 1
A152: llllllllllll | B152: 104 | C152: 1
A153: llllllllllll | B153: 56 | C153: 1
A154: SpiderAK | B154: 19 | C154: 1
A155: Cookie | B155: 122 | C155: 1
A156: NoGameNoLife | B156: 22 | C156: 1
A157: IIIIIIIIIII | B157: 0 | C157: 1
A158: llllllllll | B158: 13 | C158: 1
A159: llllllllllll | B159: 16 | C159: 1
A160: Railgun | B160: 18 | C160: 1
A161: IIIIllllIIII | B161: 17 | C161: 1
A162: IIIIIIIIIIII | B162: 138 | C162: 1
A163: IIllIllIIllI | B163: 89 | C163: 1
A164: Serendipity | B164: 79 | C164: 1
A165: llllllllllll | B165: 95 | C165: 1
A166: llllllllllll | B166: 13 | C166: 1
A167: 빠커 | B167: 63 | C167: 1
A168: llllIIIlllll | B168: 84 | C168: 1
A169: TOYZ | B169: 18 | C169: 1
A170: SpiderNado | B170: 116 | C170: 1
A171: llllllllllll | B171: 78 | C171: 1
A172: Artist | B172: 12 | C172: 1
A173: lllllllllll | B173: 85 | C173: 1
A174: llllllllllll | B174: 95 | C174: 1
A175: Sophist | B175: 12 | C175: 1
A176: 철구 | B176: 10 | C176: 1
A177: llllllllllll | B177: 127 | C177: 1
A178: lIlIlIlIlIlI | B178: 66 | C178: 1
A179: llllllllllll | B179: 156 | C179: 1
A180: Boris | B180: 20 | C180: 1
A181: 시대유예 | B181: 11 | C181: 1
A182: NightMare | B182: 1 | C182: 1
A183: persona | B183: 47 | C183: 1
A184: IIIIIIIIIIII | B184: 28 | C184: 1
A185: IlIlIlIlIlI | B185: 27 | C185: 1
A186: llllllllllll | B186: 24 | C186: 1
A187: llllllllllll | B187: 20 | C187: 1
A188: llllllllllll | B188: 0 | C188: 1
A189: IIIIlIIlllII | B189: 123 | C189: 1
A190: IIIIIIIIIIII | B190: 118 | C190: 1
A191: Untouchable | B191: 11 | C191: 1
A192: Shine | B192: 109 | C192: 1
A193: llllllllllll | B193: 102 | C193: 1
A194: MoRi | B194: 20 | C194: 1
A195: llllllllllll | B195: 90 | C195: 1
A196: Elesis | B196: 84 | C196: 1
A197: 슈퍼빌드타이거 | B197: 134 | C197: 1
A198: NeverGiveUp | B198: 33 | C198: 1
A199: llllllllllll | B199: 1 | C199: 1
